[Event "Chhattisgarh Masters GM 2022"]
[Site "Chhattisgarh"]
[Date "2022.09.19"]
[Round "1.9"]
[White "Batchuluun, Tsegmed"]
[Black "Arhan Chethan Anand"]
[Result "1-0"]
[ECO "E04"]
[WhiteElo "2478"]
[BlackElo "2155"]
[Annotator "TA"]
[PlyCount "89"]
[EventDate "2022.09.19"]
[EventCountry "IND"]
[SourceTitle "playchess.com"]
[Source "ChessBase"]
[SourceQuality "1"]
[TimeControl "5400+30"]

{[%evp 10,89,20,14,32,20,16,12,20,5,14,12,5,0,0,0,0,6,0,0,-1,-8,47,75,102,87,154,152,558,560,559,545,544,0,530,0,0,0,516,526,831,827,804,804,741,536,507,497,602,606,741,592,569,415,405,411,471,448,387,387,321,381,272,362,637,692,614,650,593,555,2391,2115,29993,29994,29994,29995,29995,29996,29996,29997,29997,1304]} 1. d4 {[%emt 0:02:13]} d5 {[%emt 0:00:09]} 2. c4 {[%emt 0:00:05]} e6 {[%emt 0:00:05]} 3. Nf3 {[%emt 0:00:17]} Nf6 {[%emt 0:00:09]} 4. g3 {[%emt 0:00:26]} dxc4 {[%emt 0:00:08]} 5. Bg2 {[%emt 0:00:05]} Bb4+ {[%emt 0:00:05]} 6. Bd2 {[%emt 0:00:03] BESTDEEP} c5 {[%emt 0:00:07] CPLX 2.9 18 (Bb4-e7) (=18). E04: Open Catalan: 5 Nf3.} 7. O-O {[%emt 0:00:51] BESTDEEP} O-O {[%emt 0:00:20] CPLX 2.8 0 (Nb8-c6) (=9)} 8. Qc1 {[%emt 0:00:29] MISS-a2-a3 4 (a2-a3) (=1)} b5 {[%emt 0:05:41] CPLX 2.6 8 (a7-a5) (=9). The position is equal.} (8... a5 $5 {[%cal Rc5d4]}) 9. dxc5 {[%emt 0:00:07] CPLX 2.7 15 (Nf3-e5) (=5)} Bxc5 {[%emt 0:00:13] RECAPT} 10. Ng5 {[%emt 0:00:07] BESTDEEP} Nd5 $1 {[%emt 0:02:00] CPLX 3.3} 11. Qc2 {[%emt 0:00:04][%csl Gg5][%cal Rc2h7] BESTDEEP} g6 $1 {[%emt 0:06:42] DEEPSTRONG} 12. Ne4 {[%emt 0:00:05] BESTDEEP} Be7 {[%emt 0:04:19] BESTDEEP} 13. Bh6 {[%emt 0:00:08] CPLX 2.3 0 (Rf1-d1) (=2)} Re8 {[%emt 0:08:48] BESTDEEP} 14. a4 {[%emt 0:00:05][%mdl 64] [#] Deflection. BESTDEEP} b4 $146 {[%emt 0:15:30] White should prevent ...Ba6. BESTDEEP} ({Predecessor:} 14... Bb7 15. axb5 a6 16. Na3 axb5 17. Nxb5 f5 18. Nd2 Rxa1 19. Rxa1 Ba6 20. Bxd5 exd5 {1-0 (35) Predke,A (2692)-Laddha,S (2262) Dubai 2022}) 15. Qxc4 {[%emt 0:00:07] EASY} Ba6 {[%emt 0:04:29] RELBLUND 55 (a7-a5) (=8)} (15... a5 $11) 16. Qd4 $14 {[%emt 0:00:31][%csl Gh6][%cal Rd4g7] EASY} f6 {[%emt 0:05:38] Hoping for ...Nc6. CPLX 3.8 27 (Be7-f8) (=10)} 17. Ng5 $1 {[%emt 0:24:24] DEEPSTRONG} Bc8 {[%emt 0:09:17] CPLX 4.2 67 (Nd5-c7) (=15)} (17... Nc7 $142 18. Qxd8 Rxd8 19. Bxa8 fxg5) 18. Rc1 $40 {[%emt 0:19:00][%cal Oc1c8][%mdl 128] Threatens to win with Rxc8! White is out for blood. White is much more active. CPLX 4.1} Qb6 $2 {[#] RELBLUND 400 (Be7-f8) (=44)} (18... Bf8 $16) 19. Qxd5 $3 $18 {[%emt 0:23:57][%mdl 512] DEEPSTRONG=>BLUNDERREACT} exd5 {[%emt 0:09:05] RECAPT} 20. Bxd5+ {[%emt 0:00:58] RECAPT} Kh8 {[%emt 0:00:37][%cal Of6g5] CPLX 5.1 0 (Bc8-e6) (=38)} 21. Nf7+ {[%emt 0:00:09] EASY} Kg8 {[%emt 0:00:03] LEGAL} 22. Ng5+ {[%emt 0:00:48] CPLX 5.4 400 (Nf7-d6) (=25)} Kh8 {[%emt 0:00:04][%cal Of6g5] EASY} 23. Nf7+ {[%emt 0:00:03] EASY} Kg8 {[%emt 0:00:02][%cal Oc8e6] [#] Black is now going downhill. LEGAL} 24. Nd6+ $1 {[%emt 0:00:07][%mdl 64] Discovered Attack. CPLX 5.4} Kh8 {[%emt 0:00:33] EVAL 305 (Bc8-e6) (=46)} 25. Nxe8 {[%emt 0:03:19][%csl Ge8][%cal Rh6g7] EVAL} Be6 {[%emt 0:02:30] EVAL} 26. a5 {[%emt 0:07:01] EVAL} Qa6 {[%emt 0:02:16] EVAL} 27. Bxe6 {[%emt 0:06:04] CPLX 4.1 205 (Bd5xa8) (=28)} Qxe6 {[%emt 0:00:30] RECAPT} 28. Nc7 {[%emt 0:00:03][%csl LRa8,LRe6] CPLX 3.4} Qd7 {[%emt 0:18:25] CPLX 3.7 105 (Qe6-f5) (=43)} (28... Qh3 $2 29. Be3 (29. Nxa8 Qxh6 30. e3 Qh3 $16)) 29. Nxa8 {[%emt 0:00:06] CPLX 3.7} g5 {[%emt 0:03:11] [#] EVAL 135 (Nb8-c6) (=47)} 30. Nd2 $1 {[%emt 0:04:10] CPLX 3.5 149 (Na8-b6) (=31)} Nc6 {[%emt 0:00:59] CPLX 3.7 0 (Nb8-a6) (=45)} (30... Na6 31. Nb6) 31. Nb3 {[%emt 0:03:36] CPLX 3.7 154 (Nd2-f3) (=36)} Kg8 {[%emt 0:00:47] DEEPSTRONG} 32. Rc2 {[%emt 0:01:52] Black must now prevent Rac1. CPLX 3.5} Kf7 {[%emt 0:01:50] CPLX 3.5 60 (Qd7-d5) (=44)} 33. Rac1 {[%emt 0:01:33] CPLX 3.9} Ne5 {[%emt 0:00:05] BESTDEEP} 34. Rc7 {[%emt 0:00:55] CPLX 3.9} Qd5 {[%emt 0:00:27] [#] CPLX 4.5} 35. Nb6 $1 {[%emt 0:01:35][%cal Ba8b6,Bb6c8,Bc8e7,Be7f5][%mdl 32] BESTDEEP} Qxb3 {[%emt 0:01:46] BESTDEEP} 36. Nc8 {[%emt 0:00:08] CPLX 4.5} ({Not} 36. Rxa7 Qxb2 37. Rac7 Kg6 38. Bxg5 fxg5 $11) 36... Kg6 $2 {[%emt 0:00:13] MISSDEEP-Ne5-g6 275 (Ne5-g6) (=47)} (36... Ng6 37. Nd6+ (37. Rxa7 Qxb2 38. Rf1 Qxe2 $11) 37... Ke6) 37. Nxe7+ {[%emt 0:01:02] CPLX 5.2=>BLUNDERREACT} Kxh6 {[%emt 0:00:04] EASY} 38. Nf5+ {[%emt 0:01:56] CPLX 3.3} Kg6 {[%emt 0:00:03] [#] EASY} 39. e4 {[%emt 0:00:16] Rg7+ is the strong threat.} Nf3+ {[%emt 0:02:18]} 40. Kg2 {[%emt 0:00:35] Rg7+ would kill now.} Nd2 {[%emt 0:00:31]} 41. Rg7+ {[%emt 0:01:05] White mates.} Kh5 {[%emt 0:00:05]} 42. Rxh7+ {[%emt 0:00:12]} Kg6 {[%emt 0:00:08]} 43. Rh6+ {[%emt 0:00:00]} Kf7 {[%emt 0:00:00]} 44. Rc7+ {[%emt 0:00:00]} Kf8 {[%emt 0:00:00]} 45. Rh8+ {[%emt 0:00:00] Weighted Error Value: White=0.40/Black=0.46} (45. Rxf6+ $142 Kg8 46. Rg7+ Kh8 47. Rh6#) 1-0

[Event "Chhattisgarh Masters GM 2022"]
[Site "Chhattisgarh"]
[Date "2022.09.19"]
[Round "1.9"]
[White "Ajay Karthikeyan"]
[Black "Kishan, Gangolli"]
[Result "1-0"]
[ECO "C15"]
[WhiteElo "2422"]
[BlackElo "2109"]
[Annotator "TA"]
[PlyCount "83"]
[EventDate "2022.09.19"]
[EventCountry "IND"]
[SourceTitle "playchess.com"]
[Source "ChessBase"]
[SourceQuality "1"]
[TimeControl "5400+30"]

{[%evp 14,83,4,0,41,35,45,50,83,72,65,77,94,101,70,55,91,82,100,103,100,107,107,115,100,102,110,64,69,64,95,95,131,131,180,128,179,181,176,171,163,153,195,195,268,250,318,297,345,344,2590,2476,12839,12839,12841,12841,12845,12845,12845,12846,12850,12847,27999,27999,27999,27999,27998,27998,27999,27998,27999,27999]} 1. e4 {[%emt 0:00:05]} e6 {[%emt 0:00:31]} 2. d4 {[%emt 0:00:08]} d5 {[%emt 0:00:22]} 3. Nc3 {[%emt 0:00:11]} Bb4 {[%emt 0:00:08]} 4. Nge2 {[%emt 0:00:33]} dxe4 {[%emt 0:03:41]} 5. a3 {[%emt 0:00:05]} Bxc3+ {[%emt 0:02:47]} 6. Nxc3 {[%emt 0:00:07]} Nc6 {[%emt 0:00:08]} 7. d5 {[%emt 0:00:22]} exd5 {[%emt 0:03:31]} 8. Qxd5 {[%emt 0:00:08] RECAPT} Nf6 {[%emt 0:17:05] CPLX 3.5 41 (Bc8-e6) (=41). C15: French: 3 Nc3 Bb4: Unusual White 4th moves.} (8... Be6 $5 {[%cal Re6d5]} 9. Qxe4 Nf6 $11) 9. Qxd8+ {[%emt 0:00:21] CPLX 3.3} Nxd8 {[%emt 0:00:19] RECAPT} 10. Bg5 {[%emt 0:00:26] CPLX 2.0} O-O {[%emt 0:15:54] CPLX 2.0 33 (Nf6-g4) (=25). White is slightly better.} 11. Bxf6 {[%emt 0:09:37] CPLX 2.0 11 (0-0-0) (=3)} gxf6 {[%emt 0:00:06] RECAPT} 12. Nd5 {[%emt 0:16:34] [#] CPLX 2.0} f5 $146 {[%emt 0:09:37] CPLX 2.0 17 (Nd8-c6) (=18)} ({Predecessor:} 12... Kg7 13. Nxc7 Rb8 14. O-O-O Bg4 15. Rd4 f5 16. h3 Bh5 17. Rd7 Kg8 18. Nd5 Bg6 {1-0 (41) Halak,M (2191)-Bosak,J (2121) Banska Stiavnica 2015}) 13. Nxc7 {[%emt 0:01:35] White is more active. CPLX 2.0} Rb8 {[%emt 0:00:07] EASY} 14. Be2 {[%emt 0:07:21] CPLX 2.0 15 (0-0-0) (=4)} Nc6 {[%emt 0:13:22] [#] CPLX 2.0 36 (Nd8-e6) (=18)} 15. O-O-O $1 {[%emt 0:00:51] CPLX 2.0} Be6 {[%emt 0:00:59] CPLX 2.0 18 (Nc6-e5) (=18)} 16. f3 {[%emt 0:06:39] BESTDEEP} exf3 {[%emt 0:11:09] BESTDEEP} 17. Bxf3 {[%emt 0:02:43] RECAPT} ({Much weaker is} 17. gxf3 Rfd8 $11) 17... Rfd8 {[%emt 0:01:23] CPLX 2.1} 18. Bxc6 {[%emt 0:12:11] BESTDEEP} bxc6 {[%emt 0:00:26] RECAPT} 19. Na6 {[%emt 0:09:29] CPLX 2.4} Rbc8 {[%emt 0:00:45] CPLX 2.4} 20. Nc5 {[%emt 0:01:03] CPLX 2.2 46 (Rd1xd8) (=6)} ({White should play} 20. Rxd8+ $16 Rxd8 21. Nb4) 20... Kg7 $14 {[%emt 0:02:59] CPLX 2.3} 21. g3 {[%emt 0:08:01] CPLX 2.3 5 (Rd1-e1) (=6)} Rd5 {[%emt 0:01:32] White stays focused until the end. CPLX 2.3 31 (Kg7-f6) (=13)} 22. Nd3 {[%emt 0:05:45] CPLX 2.5 0 (Rd1xd5) (=5)} Rcd8 {[%emt 0:04:56] CPLX 2.0 36 (Kg7-f6) (=14)} 23. Nb4 {[%emt 0:09:00] BESTDEEP} Rxd1+ {[%emt 0:01:14] CPLX 2.5} 24. Rxd1 {[%emt 0:00:06] LEGAL} Rxd1+ {[%emt 0:00:06] CPLX 2.3 51 (Rd8-c8) (=15)} (24... Rc8 $16 {was called for.} 25. Rd6 c5) 25. Kxd1 $16 {[%emt 0:00:04][%mdl 4096] Endgame KB-KN. LEGAL} Bd7 {[%emt 0:00:09] CPLX 2.0} 26. Kd2 {[%emt 0:01:15] MISS-Nb4-d3 5 (Nb4-d3) (=4)} Kf6 {[%emt 0:00:11] CPLX 2.0} 27. Ke3 {[%emt 0:02:33] MISS-Nb4-d3 10 (Nb4-d3) (=5)} Kg5 {[%emt 0:02:25] CPLX 2.0 42 (c6-c5) (=15)} 28. Nd3 {[%emt 0:01:12] Against f4+. CPLX 2.0} Be6 {[%emt 0:00:36] CPLX 2.0 73 (Bd7-e8) (=18)} (28... Be8 $142 29. Kf3 f6) 29. b4 $18 {[%emt 0:00:34] BESTDEEP} Bd5 {[%emt 0:01:40] CPLX 2.0 68 (f7-f6) (=20)} 30. a4 {[%emt 0:03:55] CPLX 2.0} Be4 {[%emt 0:02:44] CPLX 2.0 48 (Kg5-f6) (=21)} 31. c4 {[%emt 0:01:22][%cal Bc2c4,Bc4b5][%mdl 32] CPLX 2.0} Bxd3 $2 {[%emt 0:02:55] BEVAL 400 (Kg5-f6) (=37)} (31... Kf6 32. b5 Ke7) 32. Kxd3 {[%emt 0:00:02] [#] Threatens to win with b5. KP-KP. BEVAL} f4 {[%emt 0:00:06] BEVAL 400 (Kg5-f6) (=52)} 33. b5 {[%emt 0:01:58] BEVAL} cxb5 {[%emt 0:01:01] BEVAL 2 (Kg5-f6) (=50)} 34. cxb5 {[%emt 0:00:25] BEVAL} fxg3 {[%emt 0:00:56] BEVAL 4 (Kg5-f6) (=48)} 35. hxg3 {[%emt 0:00:06] K3P-K3P. BEVAL} Kg4 {[%emt 0:00:51] BEVAL 0 (Kg5-g6) (=46)} 36. a5 {[%emt 0:00:06] BEVAL} Kxg3 {[%emt 0:00:11] BEVAL 4 (h7-h6) (=45)} 37. b6 {[%emt 0:00:07] White threatens b7 and mate. BEVAL} axb6 {[%emt 0:00:05] CPLX 2.0 400 (a7-a6) (=57)} 38. axb6 {[%emt 0:00:06] RECAPT. White mates.} h5 {[%emt 0:00:44] CPLX 2.0 0 (Kg3-f4) (=55)} 39. b7 {[%emt 0:00:05] EASY} h4 {[%emt 0:00:17] CPLX 2.8 0 (f7-f5) (=53)} 40. b8=Q+ {[%emt 0:00:05] CPLX 2.9} Kg2 {[%emt 0:00:05] CPLX 2.0 1 (Kg3-f3) (=52)} 41. Ke2 {[%emt 0:00:05] CPLX 2.0 1 (Qb8-g8) (=3)} h3 {[%emt 0:00:18] CPLX 2.1} 42. Qg8+ {[%emt 0:00:04] Weighted Error Value: White=0.04 (flawless) /Black=0.35} 1-0

[Event "Chhattisgarh Masters GM 2022"]
[Site "Chhattisgarh"]
[Date "2022.09.19"]
[Round "1.9"]
[White "Rajesh, V A V"]
[Black "Mayank Chakraborty"]
[Result "1/2-1/2"]
[ECO "A01"]
[WhiteElo "2331"]
[BlackElo "2044"]
[Annotator "TA"]
[PlyCount "159"]
[EventDate "2022.09.19"]
[EventCountry "IND"]
[SourceTitle "playchess.com"]
[Source "ChessBase"]
[SourceQuality "1"]
[TimeControl "5400+30"]

{[%evp 9,159,-13,14,-39,18,12,28,39,32,29,66,58,57,15,11,18,14,6,106,102,96,31,45,38,19,0,0,-4,-2,-16,-8,-6,-10,-11,0,-18,-18,-18,-6,-18,-20,-32,-25,-21,-17,-16,0,0,0,0,0,0,0,0,0,-58,0,0,0,0,0,0,0,0,0,-27,-27,-27,-27,-27,0,0,0,-27,-27,-27,-27,-29,-29,-29,-29,-31,-31,-50,-29,-50,-35,-74,-54,-54,-18,-54,-54,-54,-54,-39,-39,-85,-85,-85,-85,-91,-91,-91,-50,-50,-50,-50,-50,-50,-27,-45,-34,-50,-12,-54,0,0,0,0,0,0,0,0,0,0,0,0,0,0,0,0,0,0,0,0,0,0,0,0,0,0,0,0,0,0,0,0,0,0,0,0]} 1. b3 {[%emt 0:00:29]} e5 {[%emt 0:00:05]} 2. Bb2 {[%emt 0:00:09]} Nc6 {[%emt 0:00:02]} 3. e3 {[%emt 0:00:07]} Nf6 {[%emt 0:00:22]} 4. Bb5 {[%emt 0:00:20]} Bd6 {[%emt 0:00:07]} 5. Na3 {[%emt 0:00:46]} a6 {[%emt 0:01:52] CPLX 2.2 27 (e5-e4) (=27)} 6. Be2 {[%emt 0:02:08] RELBLUND 53 (Bb5xc6) (=53). A01: Nimzowitsch-Larsen Opening.} (6. Bxc6 $11 dxc6 7. Nc4) 6... b5 {[%emt 0:01:28] RELBLUND 57 (Bd6-e7) (=42)} (6... Be7 $15) 7. c4 $11 {[%emt 0:00:31] CPLX 2.2} b4 {[%emt 0:03:29] CPLX 2.4 16 (h7-h6) (=33)} 8. Nc2 {[%emt 0:00:19] EASY. White has an edge.} Bb7 {[%emt 0:02:25] CPLX 2.1 0 (0-0) (=25)} 9. d4 {[%emt 0:03:48] CPLX 2.1} exd4 {[%emt 0:00:34] CPLX 2.5 37 (0-0) (=27)} 10. exd4 {[%emt 0:00:08] [#] RECAPT} O-O $146 {[%emt 0:02:56] BESTDEEP} ({Predecessor:} 10... Ne7 11. Nf3 Ne4 12. O-O O-O 13. c5 Bf4 14. Nxb4 d6 15. Qc2 Nf6 16. c6 Bc8 {0-1 (39) Reshetkov,K (2256)-Matviishen,V (2439) Lutsk 2018}) 11. c5 {[%emt 0:12:53] CPLX 2.2 42 (Be2-f3) (=16)} Bf4 {[%emt 0:01:43] CPLX 2.4} 12. Nh3 {[%emt 0:01:33] BESTDEEP} Bh6 {[%emt 0:07:27] BESTDEEP} (12... Nd5 $2 13. Bf3 $18) 13. d5 {[%emt 0:10:05] EASY} Ne7 {[%emt 0:00:13] MISSDEEP-Nc6-a7 100 (Nc6-a7) (=26)} (13... Na7 $1 $11 {remains equal.}) 14. Bxf6 $16 {[%emt 0:03:15] EASY} gxf6 {[%emt 0:00:02] RECAPT} 15. Bf3 {[%emt 0:00:49] CPLX 2.5 65 (0-0) (=16)} (15. O-O $16) 15... d6 $14 {[%emt 0:01:49] CPLX 2.4} 16. c6 {[%emt 0:02:49] CPLX 2.7 7 (0-0) (=15)} Bc8 {[%emt 0:01:06] CPLX 2.7} 17. Nxb4 {[%emt 0:01:09] CPLX 2.5 19 (Nh3-g1) (=16)} Bxh3 {[%emt 0:00:03] BESTDEEP} 18. gxh3 {[%emt 0:00:10] RECAPT} Ng6 {[%emt 0:02:12] CPLX 2.7 2 (f6-f5) (=17)} 19. O-O {[%emt 0:16:55] EASY} f5 {[%emt 0:00:12][%mdl 1024] Black has compensation. CPLX 2.5} 20. Nd3 {[%emt 0:01:23] CPLX 2.9 0 (Ra1-b1) (=12)} Kh8 {[%emt 0:04:27] CPLX 2.8 0 (Qd8-h4) (=15)} 21. Kh1 {[%emt 0:01:51] CPLX 2.8} Qh4 {[%emt 0:03:49] CPLX 2.5} 22. Bg2 {[%emt 0:12:45] CPLX 2.7 18 (Rf1-g1) (=12)} Rg8 {[%emt 0:00:47] BESTDEEP} 23. Rg1 {[%emt 0:13:29] CPLX 2.7} Rg7 {[%emt 0:02:15] BESTDEEP} 24. Qe2 {[%emt 0:00:57] CPLX 2.7 12 (Bg2-f3) (=11)} Rag8 {[%emt 0:01:12] CPLX 2.8 0 (Bh6-f4) (=12)} 25. Bf3 {[%emt 0:09:04] CPLX 2.8 12 (Ra1-f1) (=11)} Qxh3 {[%emt 0:13:31] CPLX 2.9 7 (Bh6-f4) (=12)} 26. Rg3 {[%emt 0:00:23] CPLX 3.4} Qh4 {[%emt 0:00:02] [#] Threatens to win with ...Nf4. EASY} 27. Rag1 {[%emt 0:00:55] CPLX 3.3} Nf4 {[%emt 0:00:56] CPLX 3.4 16 (Qh4-d4) (=11)} 28. Rxg7 {[%emt 0:02:14] CPLX 4.9} Bxg7 {[%emt 0:00:21] RECAPT} 29. Nxf4 {[%emt 0:00:16] CPLX 4.1} Qxf4 {[%emt 0:00:09] RECAPT} 30. Qe3 {[%emt 0:00:48] CPLX 3.0} Qh4 {[%emt 0:02:30] CPLX 3.2 0 (Qf4xe3) (=10)} 31. Be2 {[%emt 0:01:37] CPLX 3.3 0 (Qe3-g5) (=9)} Be5 {[%emt 0:00:20][%csl Ge5][%cal Rh4h2] [#] CPLX 3.4} 32. Rxg8+ {[%emt 0:00:05] BESTDEEP} Kxg8 $11 {[%emt 0:00:02][%csl Ge5][%cal Rh4h2][%mdl 4096] Endgame KQB-KQB. LEGAL} 33. h3 {[%emt 0:00:25] EASY} a5 {[%emt 0:02:01] CPLX 2.7} 34. Bd3 {[%emt 0:00:22] CPLX 2.7 0 (Qe3-f3) (=8)} Qh5 {[%emt 0:06:26] CPLX 2.6 0 (f5-f4) (=9)} (34... f4 $5 35. Qf3 $8 Bd4 $11) 35. Kg2 {[%emt 0:00:52] CPLX 3.2 0 (Bd3-e2) (=8)} Kg7 {[%emt 0:02:18] CPLX 3.6} 36. f4 {[%emt 0:01:17] CPLX 3.7} Bf6 {[%emt 0:00:45] CPLX 3.2} 37. Qg3+ {[%emt 0:00:19] CPLX 2.9 27 (Bd3-c2) (=8)} Kf8 {[%emt 0:00:15] CPLX 2.2} 38. Qf3 {[%emt 0:00:43] CPLX 2.5} Qg6+ {[%emt 0:00:16] CPLX 3.2} 39. Qg3 {[%emt 0:00:48] BESTDEEP} Qh5 {[%emt 0:02:43] CPLX 2.6 27 (Bf6-h4) (=8)} 40. Qf3 {[%emt 0:00:17] CPLX 2.5} Qg6+ {[%emt 0:00:06] CPLX 3.2} 41. Qg3 {[%emt 0:00:25] BESTDEEP} Bh4 {[%emt 0:01:37] CPLX 2.6} 42. Qxg6 {[%emt 0:00:05] Active counter play! EASY} fxg6 {[%emt 0:00:02] KB-KB. RECAPT} 43. Ba6 {[%emt 0:00:13] CPLX 2.0 2 (Kg2-f3) (=7)} Be1 {[%emt 0:00:19] CPLX 2.0} 44. Kf3 {[%emt 0:00:04] CPLX 2.0 0 (a2-a3) (=7)} Bd2 {[%emt 0:00:05] CPLX 2.0} 45. Bc8 {[%emt 0:00:04] CPLX 2.0 2 (a2-a3) (=6)} Ke7 {[%emt 0:00:05] CPLX 2.0} 46. Be6 {[%emt 0:00:05] CPLX 2.0 19 (h3-h4) (=7)} Kf6 {[%emt 0:00:10] CPLX 2.0 21 (Bd2-c1) (=7)} 47. Bd7 {[%emt 0:00:52] CPLX 2.0 21 (a2-a3) (=7)} h6 {[%emt 0:01:44] CPLX 2.0 15 (Bd2-c1) (=8)} 48. Bc8 {[%emt 0:02:08] CPLX 2.0 39 (a2-a3) (=8)} Bc1 {[%emt 0:01:47] CPLX 2.0 20 (g6-g5) (=8)} 49. h4 {[%emt 0:00:00] CPLX 2.0} Bd2 {[%emt 0:00:00] CPLX 2.0 36 (g6-g5) (=8)} 50. Kg3 {[%emt 0:00:00] CPLX 2.0 36 (a2-a3) (=8)} Be1+ {[%emt 0:00:00] CPLX 2.0} 51. Kh3 $1 {[%emt 0:00:00] CPLX 2.0} g5 {[%emt 0:00:00] BESTDEEP} 52. fxg5+ {[%emt 0:00:00] CPLX 2.0} hxg5 {[%emt 0:00:00] RECAPT} 53. hxg5+ {[%emt 0:00:00] CPLX 2.1 46 (h4-h5) (=9)} (53. h5 $1 $15 {feels stronger.}) 53... Kxg5 $17 {[%emt 0:00:00] RECAPT} 54. Ba6 {[%emt 0:00:00] CPLX 2.0 0 (Bc8-e6) (=9)} Kf4 {[%emt 0:00:00] CPLX 2.0} 55. Bd3 {[%emt 0:00:00] CPLX 2.0 6 (Kh3-g2) (=9)} Ke5 {[%emt 0:00:00] CPLX 2.0} 56. Kg2 {[%emt 0:00:00] CPLX 2.0 0 (Bd3-c4) (=8)} Kxd5 {[%emt 0:00:00] CPLX 2.0 41 (f5-f4) (=8)} 57. Bxf5 {[%emt 0:00:00] CPLX 2.0} Kxc6 {[%emt 0:00:00] CPLX 2.0} 58. Kf3 {[%emt 0:00:00] CPLX 2.0} Kc5 {[%emt 0:00:00] CPLX 2.0 0 (Be1-b4) (=8)} 59. Ke2 {[%emt 0:00:00] CPLX 2.0 0 (Kf3-e3) (=8)} Bh4 {[%emt 0:00:00] CPLX 2.0 23 (Be1-c3) (=8)} 60. Kd3 {[%emt 0:00:00] CPLX 2.0 18 (a2-a3) (=8)} Kb4 {[%emt 0:00:00] CPLX 2.0 11 (a5-a4) (=8)} 61. Be6 {[%emt 0:00:00]} Ka3 {[%emt 0:00:00]} 62. Kc2 {[%emt 0:00:00]} Kxa2 {[%emt 0:00:00]} (62... Be1 $15) 63. b4+ $1 $11 {[%emt 0:00:00] The position is equal.} Ka3 {[%emt 0:00:00]} 64. bxa5 {[%emt 0:00:00]} Kb4 {[%emt 0:00:00]} 65. a6 {[%emt 0:00:00] Strongly threatening a7.} Bf2 {[%emt 0:00:00]} 66. Bg4 {[%emt 0:00:00]} Ba7 {[%emt 0:00:00]} 67. Bf3 {[%emt 0:00:00]} c5 {[%emt 0:00:00]} 68. Be2 {[%emt 0:00:00]} c4 {[%emt 0:00:00]} 69. Bf3 {[%emt 0:00:00]} Kb5 {[%emt 0:00:00]} 70. Kc3 {[%emt 0:00:43]} Kc5 {[%emt 0:00:00]} 71. Kc2 {[%emt 0:00:08]} Bb6 {[%emt 0:00:00]} 72. Bg2 {[%emt 0:00:20]} Kb5 {[%emt 0:00:00]} 73. Bd5 {[%emt 0:00:26]} Kc5 {[%emt 0:00:00]} 74. Bf3 {[%emt 0:00:08]} d5 {[%emt 0:00:00]} 75. Bg2 {[%emt 0:00:46]} d4 {[%emt 0:00:00] White must now prevent ...d3+.} 76. Bf1 {[%emt 0:00:06]} Kb5 {[%emt 0:00:00]} 77. Be2 {[%emt 0:00:07]} d3+ {[%emt 0:00:00]} 78. Bxd3 $1 {[%emt 0:00:05]} cxd3+ {[%emt 0:00:00]} 79. Kxd3 {[%emt 0:00:07]} Kxa6 {[%emt 0:00:00]} 80. Ke4 {[%emt 0:14:25] Weighted Error Value: White=0.09 (flawless) /Black=0.09 (flawless)} 1/2-1/2